fUSD/lending_fUSD_20240330
["ID","MTS","AMOUNT","RATE_DAILY","PERIOD"]
[321046220,1711818640166,-153.26447119,0.00040355,8]
[321046221,1711818640175,-1117.87,0.0004038,2]
[321046222,1711818640184,-4669.0805315,0.00040396,2]
[321046223,1711818640193,-1006.91,0.00040411,2]
[321046224,1711818640202,-408.21,0.00040411,2]
[321046225,1711818640212,-798.32,0.00040438,2]
[321046226,1711818640221,-150.0,0.000405,6]
[321046227,1711818640230,-166.79,0.00040579,2]
[321046228,1711818640240,-3174.77299678,0.00040634,14]
[321046229,1711818640250,-210.0,0.00040688,4]
[321046230,1711818640259,-210.0,0.00040688,5]
[321046231,1711818640269,-150.0,0.00040762,2]
[321046232,1711818640279,-4669.0805315,0.00040792,2]
[321046233,1711818640288,-500.0,0.00040795,2]
[321046234,1711818640297,-410.0528,0.00040795,2]
[321046235,1711818640306,-735.2165,0.00040795,2]
[321046236,1711818640315,-500.0,0.00040795,2]
[321046237,1711818640325,-500.0,0.00040795,2]
[321046238,1711818640334,-500.0,0.00040795,2]
[321046239,1711818640342,-500.0,0.00040795,2]
[321046240,1711818640351,-500.0,0.00040795,2]
[321046241,1711818640360,-541.4608,0.00040795,2]
[321046242,1711818640369,-196932.61817799,0.000408,2]
[321046247,1711818642669,-48067.38182201,0.000408,2]
[321046248,1711818642679,-467.65867148,0.00040844,33]
[321046249,1711818642688,-980.15146632,0.0004085,2]
[321046250,1711818642697,-536.97302762,0.0004085,2]
[321046251,1711818642707,-513.20637914,0.0004085,2]
[321046252,1711818642719,-244.44386766,0.0004085,2]
[321046253,1711818642728,-800.0,0.0004085,15]
[321046254,1711818642737,-500.0,0.0004085,20]
[321046255,1711818642746,-22634.3463,0.000409,2]
[321046256,1711818642755,-500.0,0.000409,2]
[321046257,1711818642765,-1000.0,0.000409,2]
[321046258,1711818642774,-25870.1611622,0.00040918,2]
[321046259,1711818642783,-184.02021979,0.00040922,2]
[321046260,1711818642794,-162.27988323,0.00040924,2]
[321046261,1711818642803,-649.60663539,0.00040924,2]
[321046262,1711818642812,-2973.51184775,0.00040924,2]
[321046263,1711818642821,-1858.58140725,0.00040925,2]
[321046264,1711818642830,-162.27988323,0.00040927,2]
[321046265,1711818642839,-235.70748334,0.00040928,2]
[321046266,1711818642849,-25870.1611622,0.00040928,2]
[321046267,1711818642858,-235.70748334,0.00040929,2]
[321046268,1711818642867,-184.02021979,0.0004093,2]
[321046269,1711818642876,-649.60663539,0.0004093,2]
[321046270,1711818642885,-8886.37636032,0.0004093,2]
[321046271,1711818642894,-162.97950088,0.00040931,2]
[321046272,1711818642904,-7661.29059157,0.00040934,2]
[321046273,1711818642913,-7661.29059157,0.00040935,2]
[321046274,1711818642923,-162.27988323,0.00040936,2]
[321046275,1711818642932,-184.02021979,0.00040936,2]
[321046276,1711818642941,-7661.29059157,0.00040937,2]
[321046277,1711818642951,-162.27988323,0.00040939,2]
[321046278,1711818642960,-649.60663539,0.00040941,2]
[321046279,1711818642969,-162.97950088,0.00040943,2]
[321046280,1711818642978,-235.70748334,0.00040944,2]
[321046281,1711818642988,-2973.51184775,0.00040946,2]
[321046282,1711818642997,-12690.31180541,0.00040946,2]
[321046283,1711818643006,-162.27988323,0.00040948,2]
[321046284,1711818643016,-7661.29059157,0.00040948,2]
[321046285,1711818643026,-162.97950088,0.00040948,2]
[321046286,1711818643035,-7661.29059157,0.0004095,2]
[321046287,1711818643045,-184.02021979,0.00040951,2]
[321046288,1711818643054,-162.97950088,0.00040952,2]
[321046289,1711818643064,-7661.29059157,0.00040953,2]
[321046290,1711818643073,-235.70748334,0.00040953,2]
[321046291,1711818643083,-2973.51184775,0.00040953,2]
[321046292,1711818643092,-1858.58140725,0.00040954,2]
[321046293,1711818643101,-8886.37636032,0.00040954,2]
[321046294,1711818643111,-12690.31180541,0.00040955,2]
[321046295,1711818643120,-25870.1611622,0.00040956,2]
[321046296,1711818643129,-25870.1611622,0.00040957,2]
[321046297,1711818643139,-10000.0,0.00040958,2]
[321046298,1711818643148,-12690.31180541,0.0004096,2]
[321046299,1711818643157,-8886.37636032,0.0004096,2]
[321046300,1711818643167,-649.60663539,0.0004096,2]
[321046301,1711818643176,-649.60663539,0.00040961,2]
[321046302,1711818643185,-649.60663539,0.00040961,2]
[321046303,1711818643195,-235.70748334,0.00040964,2]
[321046304,1711818643206,-12690.31180541,0.00040966,2]
[321046305,1711818643215,-184.02021979,0.00040967,2]
[321046306,1711818643224,-2973.51184775,0.00040967,2]
[321046307,1711818643233,-25870.1611622,0.0004097,2]
[321046308,1711818643243,-8886.37636032,0.00040972,2]
[321046309,1711818643252,-235.70748334,0.00040972,2]
[321046310,1711818643261,-1858.58140725,0.00040973,2]
[321046311,1711818643270,-2973.51184775,0.00040974,2]
[321046312,1711818643280,-162.97950088,0.00040974,2]
[321046313,1711818643289,-2973.51184775,0.00040977,2]
[321046314,1711818643299,-184.02021979,0.00040978,2]
[321046315,1711818643308,-184.02021979,0.0004098,2]
[321046316,1711818643317,-162.27988323,0.0004098,2]
[321046317,1711818643326,-162.27988323,0.00040981,2]
[321046318,1711818643335,-7661.29059157,0.00040981,2]
[321046319,1711818643344,-649.60663539,0.00040982,2]
[321046320,1711818643353,-162.97950088,0.00040985,2]
[321046321,1711818643362,-25870.1611622,0.00040989,2]
[321046322,1711818643371,-1858.58140725,0.00040989,2]
[321046323,1711818643380,-25870.1611622,0.00040991,2]
[321046324,1711818643390,-235.70748334,0.00040992,2]
[321046325,1711818643400,-1858.58140725,0.00040992,2]
[321046326,1711818643412,-553.4683392,0.00040993,3]
[321046327,1711818643423,-12690.31180541,0.00040993,2]
[321046328,1711818643434,-8886.37636032,0.00040993,2]
[321046329,1711818643443,-12690.31180541,0.00040994,2]
[321046330,1711818643453,-1858.58140725,0.00040995,2]
[321046331,1711818643463,-716.37487076,0.00040995,4]
[321046332,1711818643472,-2973.51184775,0.00040995,2]
[321046333,1711818643482,-162.97950088,0.00040996,2]
[321046334,1711818643494,-3691.65950884,0.00040996,2]
[321046335,1711818643504,-8886.37636032,0.00040997,2]
[321046336,1711818643514,-3092.66347366,0.00040998,4]
[321046337,1711818643523,-3359.51180267,0.00040998,4]
[321046338,1711818643533,-186.45093788,0.00040998,4]
[321046339,1711818643542,-262.89580036,0.00040998,4]
[321046340,1711818643552,-397.82827576,0.00040998,4]
[321046341,1711818643561,-623.38346704,0.00040998,4]
[321046342,1711818643570,-520.77623655,0.00040998,4]
[321046343,1711818643581,-214.69761119,0.00040998,4]
[321046344,1711818643593,-5742.09513247,0.00040998,4]
[321046345,1711818643603,-330.1927263,0.00040998,4]
[321046346,1711818643612,-202.20339424,0.00040998,4]
[321046347,1711818643622,-832.87810087,0.00040998,4]
[321046348,1711818643631,-12690.31180541,0.00040998,2]
[321046349,1711818643640,-8886.37636032,0.00040999,2]
[321046350,1711818643650,-1858.58140725,0.00040999,2]
[321046351,1711818643662,-808.65931852,0.00040999,4]
[321046352,1711818643671,-4300.63296631,0.00040999,2]
[321046353,1711818643681,-1661.23181656,0.00040999,2]
[321046354,1711818643691,-108134.30859278,0.00041,5]
[321046355,1711818643708,-702.33952,0.00041,5]
[321046356,1711818643724,-3734.71616708,0.00041,5]
[321046357,1711818643770,-7167.69647047,0.00041,5]
[321046358,1711818643781,-1468.79524653,0.00041,5]
[321046359,1711818643801,-351426.28600381,0.00041,5]
[321046360,1711818645586,-92914.65869872,0.00041,5]
[321046361,1711818645697,-310.00217,0.00041,5]
[321046362,1711818645711,-291.2772942,0.00041,5]
[321046363,1711818645813,-30931.04474095,0.00041,5]
[321046364,1711818645823,-250.0,0.00041,120]
[321046365,1711818645833,-327.0,0.00041,20]
[321046366,1711818645843,-535.52,0.00041,7]
[321046367,1711818645854,-450.0,0.00041,3]
[321046368,1711818645864,-479.0,0.00041,27]
[321046369,1711818645873,-473.0,0.00041,16]
[321046370,1711818645883,-150.0,0.00041,6]
[321046371,1711818645893,-327.8531,0.00041,7]
[321046372,1711818645902,-153.26447119,0.0004101,10]
[321046373,1711818645912,-29175.39268786,0.00041011,2]
[321046374,1711818645934,-624.560005,0.00041011,2]
[321046376,1711818647720,174.98483013,0.00029598,2]
[321046377,1711818647766,621.65917336,0.00029598,2]
[321046378,1711818656471,365.90575037,0.00029598,2]
[321046379,1711818675301,13291.58364184,0.00029598,2]
[321046390,1711819831892,-350.87105502,0.00030991,4]
[321046391,1711819832058,-108.18054591,0.00030991,4]
[321046392,1711819832068,-220.79,0.00030992,2]
[321046393,1711819832078,-150.0,0.0003174,2]
[321046394,1711819832087,-250.0,0.00033,3]
[321046395,1711819832097,-300.0,0.00035,3]
[321046396,1711819832106,-749.37,0.00036964,2]
[321046397,1711819832115,-350.0,0.00037,3]
[321046398,1711819832125,-600.0,0.00037,38]
[321046399,1711819832134,-600.0,0.00038,39]
[321046400,1711819832144,-200.0,0.00038407,2]
[321046401,1711819832153,-500.0,0.00038448,2]
[321046402,1711819832163,-156.29,0.00038565,2]
[321046403,1711819832172,-230.4,0.00038633,2]
[321046404,1711819832181,-1204.34,0.00038633,2]
[321046405,1711819832190,-670.459,0.00038662,2]
[321046406,1711819832199,-23900.0,0.00038763,2]
[321046407,1711819832208,-169.78,0.00038832,15]
[321046408,1711819832217,-250.0,0.00038844,2]
[321046409,1711819832227,-250.0,0.0003887,2]
[321046410,1711819832237,-200.0,0.00038897,2]
[321046411,1711819832246,-432.22,0.00038955,2]
[321046412,1711819832255,-400.0,0.00039,3]
[321046413,1711819832265,-600.0,0.00039,40]
[321046414,1711819832275,-749.37,0.00039228,2]
[321046415,1711819832283,-500.0,0.00039396,2]
[321046416,1711819832293,-239.41044962,0.00039399,4]
[321046417,1711819832303,-1505.46423602,0.000394,2]
[321046434,1711819837725,-783.45476951,0.000394,2]
[321046444,1711819837782,-392.83190755,0.000394,2]
[321046446,1711819837794,-261.12,0.000394,2]
[321046449,1711819837998,-1490.46778692,0.000394,2]
[321046450,1711819838008,-19136.58891457,0.000394,2]
[321046451,1711819839870,-17639.31684645,0.000394,2]
[321046452,1711819839882,-390.44,0.000394,2]
[321046453,1711819839926,-8997.97253898,0.000394,2]
[321046454,1711819839936,-3471.2427,0.000394,2]
[321046455,1711819839946,-1000.0,0.000394,2]
[321046456,1711819839955,-2009.4378,0.000394,2]
[321046457,1711819839964,-13227.0783884,0.000394,2]
[321046458,1711819839973,-1558.026,0.000394,2]
[321046459,1711819839982,-11493.25877202,0.000394,2]
[321046468,1711819842837,-5698.30872798,0.000394,2]
[321046469,1711819842846,-175.58645404,0.00039476,2]
[321046470,1711819842858,-10694.06054351,0.000395,2]
[321046471,1711819843099,-89305.93945649,0.000395,2]
[321046472,1711819843108,-245000.0,0.000395,2]
[321046473,1711819843117,-430.33,0.00039576,2]
[321046474,1711819843127,-170.82,0.00039588,2]
[321046475,1711819843138,-769.6,0.00039729,2]
[321046476,1711819843147,-524.54,0.00039751,2]
[321046477,1711819843157,-13227.07838834,0.00039882,2]
[321046478,1711819843167,-175.58645402,0.00039924,2]
[321046479,1711819843176,-865.42132727,0.0004,4]
[321046480,1711819843186,-600.0,0.0004,41]
[321046481,1711819843195,-308.0,0.000403,3]
[321046482,1711819843205,-152.0,0.00040312,3]
[321046483,1711819843215,-13227.07838834,0.00040363,2]
[321046484,1711819843225,-175.58645402,0.00040373,2]
[321046485,1711819843234,-165.37,0.00040655,2]
[321046486,1711819843243,-206.674619,0.00040676,15]
[321046487,1711819843252,-800.0,0.00040676,15]
[321046488,1711819843260,-500.0,0.00040676,20]
[321046489,1711819843270,-200.0,0.00040676,20]
[321046490,1711819843280,-800.0,0.00040682,15]
[321046491,1711819843290,-1241.87298292,0.00040687,2]
[321046492,1711819843300,-589.85,0.00040767,2]
[321046493,1711819843310,-1226.0,0.00040767,2]
[321046494,1711819843319,-175.58645402,0.00040821,2]
[321046495,1711819843328,-13227.07838834,0.00040845,2]
[321046496,1711819843337,-556.52534985,0.000409,2]
[321046497,1711819843347,-1080.34194817,0.0004092,2]
[321046498,1711819843357,-167.0,0.00040924,2]
[321046499,1711819843366,-1084.0583263,0.00040933,2]
[321046500,1711819843376,-1084.0583263,0.00040936,2]
[321046501,1711819843386,-1080.34194817,0.00040937,2]
[321046502,1711819843395,-1080.34194817,0.00040944,2]
[321046503,1711819843405,-1084.0583263,0.00040946,2]
[321046504,1711819843414,-1080.34194817,0.00040952,2]
[321046505,1711819843424,-1084.0583263,0.00040956,2]
[321046506,1711819843433,-10000.0,0.00040958,2]
[321046507,1711819843442,-1084.0583263,0.00040964,2]
[321046508,1711819843452,-1084.0583263,0.00040973,2]
[321046509,1711819843461,-1084.0583263,0.00040977,2]
[321046510,1711819843471,-1080.34194817,0.00040988,2]
[321046511,1711819843480,-1080.34194817,0.00040988,2]
[321046512,1711819843490,-1080.34194817,0.00040995,2]
[321046513,1711819843500,-164.30115815,0.00040995,2]
[321046514,1711819843509,-153.26447119,0.00040995,10]
[321046515,1711819843519,-1000.0,0.00040995,2]
[321046516,1711819843530,-7500.0,0.00040995,2]
[321046517,1711819843540,-473.0,0.00041,16]
[321046518,1711819843549,-450.0,0.00041,3]
[321046519,1711819843559,-600.0,0.00041,42]
[321046520,1711819843568,-516.7817485,0.00041001,2]
[321046521,1711819843577,-10972.9477378,0.00041005,2]
[321046522,1711819843587,-311663.321003,0.00041005,2]
[321046523,1711819843596,-14464.2343526,0.00041005,2]
[321046524,1711819843605,-4767.3919495,0.00041005,2]
[321046525,1711819843615,-1666.4797855,0.00041005,2]
[321046526,1711819843624,-155.0,0.00041009,4]
[321046527,1711819843634,-5742.09513247,0.00041009,4]
[321046528,1711819843643,-350.77515,0.00041009,4]
[321046529,1711819843653,-565.95935168,0.00041009,4]
[321046530,1711819843662,-514.97548392,0.00041009,4]
[321046531,1711819843671,-155.0,0.00041009,4]
[321046532,1711819843681,-830.61590828,0.0004101,2]
[321046533,1711819843691,-273.21091,0.00041011,7]
[321046534,1711819843700,-261.16690175,0.00041011,2]
[321046535,1711819843709,-156.29,0.00041012,2]
[321046536,1711819843719,-425.62,0.00041029,2]
[321046537,1711819843728,-226.90571629,0.00041053,13]
[321046538,1711819843738,-406.77668318,0.00041072,4]
[321046539,1711819843747,-165.37,0.00041085,2]
[321046540,1711819843756,-27933.99565833,0.00041088,2]
[321046541,1711819843765,-1222.10181458,0.00041093,4]
[321046542,1711819843775,-347.37825975,0.00041094,2]
[321046543,1711819843784,-500.0,0.00041095,2]
[321046544,1711819843793,-514.96673333,0.00041095,4]
[321046545,1711819843803,-501.15010789,0.00041095,4]
[321046546,1711819843814,-501.81636324,0.00041095,4]
[321046547,1711819843823,-500.0,0.00041095,4]
[321046548,1711819843833,-514.22203366,0.00041095,4]
[321046549,1711819843843,-505.90296163,0.00041095,4]
[321046550,1711819843853,-244.2090923,0.00041095,4]
[321046551,1711819843863,-500.0,0.00041095,4]
[321046552,1711819843872,-500.0,0.00041095,4]
[321046553,1711819843882,-500.0,0.00041095,4]
[321046554,1711819843891,-500.0,0.00041095,4]
[321046555,1711819843900,-500.0,0.00041095,4]
[321046556,1711819843910,-500.0,0.00041095,4]
[321046557,1711819843919,-508.69013579,0.00041095,4]
[321046558,1711819843929,-422.88803452,0.00041095,4]
[321046559,1711819843939,-519.49288858,0.00041095,4]
[321046560,1711819843948,-500.0,0.00041095,2]
[321046561,1711819843957,-433.82199554,0.00041095,2]
[321046562,1711819843967,-502.16585942,0.00041095,4]
[321046563,1711819843977,-505.17115799,0.00041095,4]
[321046564,1711819843986,-502.66099799,0.00041095,4]
[321046565,1711819843995,-500.0,0.00041095,2]
[321046566,1711819844004,-508.73479613,0.00041095,4]
[321046567,1711819844014,-506.98930017,0.00041095,4]
[321046568,1711819844023,-500.0,0.00041095,4]
[321046569,1711819844032,-506.36805638,0.00041095,4]
[321046570,1711819844041,-500.0,0.00041095,4]
[321046571,1711819844051,-310.47925103,0.00041095,4]
[321046572,1711819844066,-521.66216938,0.00041095,4]
[321046573,1711819844075,-500.0,0.00041095,4]
[321046574,1711819844084,-505.94984303,0.00041095,4]
[321046575,1711819844093,-500.0,0.00041095,4]
[321046576,1711819844102,-500.0,0.00041095,4]
[321046577,1711819844113,-500.0,0.00041095,4]
[321046578,1711819844121,-500.0,0.00041095,4]
[321046579,1711819844131,-500.0,0.00041095,4]
[321046580,1711819844141,-500.0,0.00041095,4]
[321046581,1711819844150,-500.0,0.00041095,4]
[321046582,1711819844159,-500.0,0.00041095,4]
[321046583,1711819844169,-500.0,0.00041095,4]
[321046584,1711819844177,-500.0,0.00041095,4]
[321046585,1711819844187,-508.59582806,0.00041095,4]
[321046586,1711819844196,-500.0,0.00041095,4]
[321046587,1711819844205,-500.0,0.00041095,4]
[321046588,1711819844214,-500.0,0.00041095,4]
[321046589,1711819844223,-500.0,0.00041095,4]
[321046590,1711819844232,-500.0,0.00041095,2]
[321046591,1711819844242,-536.15132573,0.00041095,4]
[321046592,1711819844251,-500.0,0.00041095,4]
[321046593,1711819844260,-500.0,0.00041095,4]
[321046594,1711819844271,-500.0,0.00041095,4]
[321046595,1711819844280,-533.08765426,0.00041095,4]
[321046596,1711819844290,-500.0,0.00041095,4]
[321046597,1711819844299,-500.0,0.00041095,4]
[321046598,1711819844309,-509.49540363,0.00041095,4]
[321046599,1711819844318,-500.0,0.00041095,4]
[321046600,1711819844330,-500.0,0.00041095,4]
[321046601,1711819844340,-500.0,0.00041095,4]
[321046602,1711819844349,-552.7828594,0.00041095,4]
[321046603,1711819844360,-500.0,0.00041095,4]
[321046604,1711819844369,-500.0,0.00041095,4]
[321046605,1711819844379,-500.0,0.00041095,4]
[321046606,1711819844388,-500.0,0.00041095,4]
[321046607,1711819844398,-500.0,0.00041095,4]
[321046608,1711819844409,-500.0,0.00041095,4]
[321046609,1711819844419,-529.37780002,0.00041095,4]
[321046610,1711819844429,-500.0,0.00041095,4]
[321046611,1711819844439,-516.60984666,0.00041095,4]
[321046612,1711819844449,-500.0,0.00041095,4]
[321046613,1711819844459,-500.0,0.00041095,4]
[321046614,1711819844469,-500.0,0.00041095,2]
[321046615,1711819844479,-500.0,0.00041095,4]
[321046616,1711819844489,-508.35423696,0.00041095,4]
[321046617,1711819844499,-525.27923935,0.00041095,4]
[321046618,1711819844509,-500.0,0.00041095,4]
[321046619,1711819844520,-500.0,0.00041095,4]
[321046620,1711819844530,-500.0,0.00041095,4]
[321046621,1711819844540,-500.0,0.00041095,4]
[321046622,1711819844550,-500.0,0.00041095,4]
[321046623,1711819844560,-500.0,0.00041095,4]
[321046624,1711819844570,-500.0,0.00041095,4]
[321046625,1711819844579,-500.0,0.00041095,4]
[321046626,1711819844588,-500.0,0.00041095,4]
[321046627,1711819844598,-500.0,0.00041095,4]
[321046628,1711819844607,-500.0,0.00041095,4]
[321046629,1711819844617,-500.0,0.00041095,4]
[321046630,1711819844626,-500.0,0.00041095,4]
[321046631,1711819844636,-500.0,0.00041095,4]
[321046632,1711819844646,-500.0,0.00041095,4]
[321046633,1711819844657,-500.0,0.00041095,4]
[321046634,1711819844666,-500.0,0.00041095,4]
[321046635,1711819844676,-500.0,0.00041095,4]
[321046636,1711819844686,-500.0,0.00041095,4]
[321046637,1711819844695,-500.0,0.00041095,4]
[321046638,1711819844705,-500.0,0.00041095,4]
[321046639,1711819844715,-500.0,0.00041095,4]
[321046640,1711819844724,-500.0,0.00041095,4]
[321046641,1711819844734,-500.0,0.00041095,4]
[321046642,1711819844743,-500.0,0.00041095,4]
[321046643,1711819844752,-500.0,0.00041095,4]
[321046644,1711819844762,-500.0,0.00041095,4]
[321046645,1711819844771,-500.0,0.00041095,4]
[321046646,1711819844780,-500.0,0.00041095,4]
[321046647,1711819844790,-507.66384485,0.00041095,4]
[321046648,1711819844799,-500.0,0.00041095,4]
[321046649,1711819844808,-500.0,0.00041095,4]
[321046650,1711819844818,-500.0,0.00041095,4]
[321046651,1711819844827,-500.0,0.00041095,4]
[321046652,1711819844836,-500.0,0.00041095,4]
[321046653,1711819844846,-500.0,0.00041095,4]
[321046654,1711819844855,-500.0,0.00041095,4]
[321046655,1711819844864,-500.0,0.00041095,4]
[321046656,1711819844873,-425.26096474,0.00041095,4]
[321046657,1711819844883,-500.0,0.00041095,4]
[321046658,1711819844892,-500.0,0.00041095,4]
[321046659,1711819844902,-500.0,0.00041095,4]
[321046660,1711819844911,-500.0,0.00041095,4]
[321046661,1711819844920,-510.78176947,0.00041095,4]
[321046662,1711819844930,-500.0,0.00041095,4]
[321046663,1711819844938,-500.0,0.00041095,4]
[321046664,1711819844947,-512.38746551,0.00041095,4]
[321046665,1711819844957,-500.0,0.00041095,4]
[321046666,1711819844966,-500.0,0.00041095,4]
[321046667,1711819844975,-500.0,0.00041095,4]
[321046668,1711819844984,-500.0,0.00041095,4]
[321046669,1711819844993,-500.0,0.00041095,4]
[321046670,1711819845002,-153.8635774,0.00041095,4]
[321046671,1711819845011,-500.0,0.00041095,4]
[321046672,1711819845022,-500.0,0.00041095,4]
[321046673,1711819845031,-500.0,0.00041095,4]
[321046674,1711819845041,-500.0,0.00041095,4]
[321046675,1711819845052,-508.45462986,0.00041095,4]
[321046676,1711819845066,-500.0,0.00041095,4]
[321046677,1711819845076,-524.40777164,0.00041095,4]
[321046678,1711819845085,-500.0,0.00041095,4]
[321046679,1711819845095,-500.0,0.00041095,4]
[321046680,1711819845105,-500.0,0.00041095,4]
[321046681,1711819845114,-501.77944973,0.00041095,4]
[321046682,1711819845123,-500.0,0.00041095,4]
[321046683,1711819845136,-500.0,0.00041095,4]
[321046684,1711819845145,-520.32669876,0.00041095,4]
[321046685,1711819845155,-500.0,0.00041095,4]
[321046686,1711819845164,-500.0,0.00041095,4]
[321046687,1711819845174,-500.0,0.00041095,4]
[321046688,1711819845183,-500.0,0.00041095,4]
[321046689,1711819845192,-500.0,0.00041095,4]
[321046690,1711819845202,-221.09925552,0.00041095,4]
[321046691,1711819845211,-515.05767254,0.00041095,4]
[321046692,1711819845221,-500.0,0.00041095,4]
[321046693,1711819845230,-500.0,0.00041095,4]
[321046694,1711819845239,-500.0,0.00041095,4]
[321046695,1711819845249,-500.0,0.00041095,4]
[321046696,1711819845258,-500.0,0.00041095,4]
[321046697,1711819845267,-500.0,0.00041095,4]
[321046698,1711819845276,-500.0,0.00041095,4]
[321046699,1711819845285,-500.0,0.00041095,4]
[321046700,1711819845294,-509.1284296,0.00041095,4]
[321046701,1711819845303,-500.0,0.00041095,4]
[321046702,1711819845312,-500.0,0.00041095,4]
[321046703,1711819845320,-500.0,0.00041095,4]
[321046704,1711819845329,-500.0,0.00041095,4]
[321046705,1711819845338,-500.0,0.00041095,4]
[321046706,1711819845347,-500.0,0.00041095,4]
[321046707,1711819845356,-500.0,0.00041095,4]
[321046708,1711819845365,-500.0,0.00041095,4]
[321046709,1711819845375,-500.0,0.00041095,4]
[321046710,1711819845384,-150.0,0.00041095,4]
[321046711,1711819845393,-500.0,0.00041095,4]
[321046712,1711819845402,-500.0,0.00041095,4]
[321046713,1711819845412,-524.68803263,0.00041095,4]
[321046714,1711819845422,-534.742876,0.00041095,4]
[321046715,1711819845432,-500.0,0.00041095,4]
[321046716,1711819845442,-500.0,0.00041095,4]
[321046717,1711819845453,-507.43844064,0.00041095,4]
[321046718,1711819845463,-500.0,0.00041095,4]
[321046719,1711819845473,-500.0,0.00041095,4]
[321046720,1711819845483,-500.0,0.00041095,4]
[321046721,1711819845492,-1000.0,0.00041095,2]
[321046722,1711819845502,-500.0,0.00041095,4]
[321046723,1711819845512,-500.0,0.00041095,4]
[321046724,1711819845522,-500.0,0.00041095,4]
[321046725,1711819845720,-500.0,0.00041095,4]
[321046726,1711819845730,-538.1777015,0.00041095,4]
[321046727,1711819845740,-500.0,0.00041095,4]
[321046728,1711819845749,-183.04190296,0.00041095,4]
[321046729,1711819845758,-500.0,0.00041095,4]
[321046730,1711819845767,-500.0,0.00041095,4]
[321046731,1711819845777,-500.0,0.00041095,4]
[321046732,1711819845786,-500.0,0.00041095,4]
[321046733,1711819845795,-500.0,0.00041095,4]
[321046734,1711819845805,-500.0,0.00041095,4]
[321046735,1711819845815,-500.0,0.00041095,4]
[321046736,1711819845824,-500.0,0.00041095,4]
[321046737,1711819845834,-500.0,0.00041095,4]
[321046738,1711819845843,-536.97559615,0.00041095,4]
[321046739,1711819845851,-500.0,0.00041095,4]
[321046740,1711819845861,-500.0,0.00041095,4]
[321046741,1711819845870,-507.9712261,0.00041095,4]
[321046742,1711819845879,-500.0,0.00041095,4]
[321046743,1711819845889,-500.0,0.00041095,4]
[321046744,1711819845898,-500.0,0.00041095,4]
[321046745,1711819845907,-509.00352254,0.00041095,4]
[321046746,1711819845916,-500.0,0.00041095,4]
[321046747,1711819845926,-500.0,0.00041095,4]
[321046748,1711819845937,-500.0,0.00041095,4]
[321046749,1711819845946,-502.59403168,0.00041095,4]
[321046750,1711819845956,-500.0,0.00041095,4]
[321046751,1711819845965,-500.0,0.00041095,4]
[321046752,1711819845975,-500.0,0.00041095,4]
[321046753,1711819845984,-500.0,0.00041095,4]
[321046754,1711819845994,-500.0,0.00041095,4]
[321046755,1711819846003,-500.0,0.00041095,4]
[321046756,1711819846012,-204.0,0.00041095,4]
[321046757,1711819846021,-500.0,0.00041095,4]
[321046758,1711819846031,-500.0,0.00041095,4]
[321046759,1711819846040,-500.0,0.00041095,4]
[321046760,1711819846051,-504.15322538,0.00041095,4]
[321046761,1711819846062,-500.0,0.00041095,4]
[321046762,1711819846071,-500.0,0.00041095,4]
[321046763,1711819846081,-500.0,0.00041095,4]
[321046764,1711819846090,-500.0,0.00041095,4]
[321046765,1711819846100,-500.0,0.00041095,4]
[321046766,1711819846109,-500.0,0.00041095,4]
[321046767,1711819846119,-500.0,0.00041095,4]
[321046768,1711819846130,-500.0,0.00041095,4]
[321046769,1711819846139,-504.41467957,0.00041095,4]
[321046770,1711819846149,-472.74177065,0.00041095,4]